Department family,Entity,Date,Expense Type,Expense area,Supplier,Transaction number,AP Amount (�),Description,VAT registration number
Department of Health,03K,30/04/2015,Hcare Srv Rec NHS Trust-Contract Baseline,ACUTE COMMISSIONING,UNITED LINCOLNSHIRE HOSPITALS NHS TRUST,171049,"67,767.22",MONTHLY SLA CHARGE 2015/16,
Department of Health,03K,30/04/2015,Hcare Srv Rec NHS Trust-Contract Baseline,ACUTE COMMISSIONING,UNITED LINCOLNSHIRE HOSPITALS NHS TRUST,207019,"-25,145.87",SLA RECONCILIATION MONTH 11 2014/15,
Department of Health,03K,30/04/2015,Hcare Srv Rec NHS Trust-Contract Baseline,Winter Resilience,HULL AND EAST YORKSHIRE HOSPITALS NHS TRUST,1210015809,"108,000.00",FINAL AGREED OUTTURN 2014/15,
Department of Health,03K,30/04/2015,C&M-GMS Cost of Drugs -Dispensing,LOCAL ENHANCED SERVICES,BRIDGE STREET SURGERY,KHU000012177,"-30,072.96",LOCAL ENHANCED SERVICES,
Department of Health,03K,30/04/2015,C&M-GMS Cost of Drugs -Dispensing,LOCAL ENHANCED SERVICES,BRIDGE STREET SURGERY,KHU000012178,"59,421.62",LOCAL ENHANCED SERVICES,
Department of Health,03K,30/04/2015,C&M-GMS Cost of Drugs -Dispensing,LOCAL ENHANCED SERVICES,DR G R BHORCHI,KHU000012184,"30,480.51",LOCAL ENHANCED SERVICES,
Department of Health,03K,30/04/2015,C&M-GMS Cost of Drugs -Dispensing,LOCAL ENHANCED SERVICES,DR P A WEBSTER & PARTNERS,KHU000012188,"-64,818.19",LOCAL ENHANCED SERVICES,
Department of Health,03K,30/04/2015,C&M-GMS Cost of Drugs -Dispensing,LOCAL ENHANCED SERVICES,DR P A WEBSTER & PARTNERS,KHU000012189,"122,120.44",LOCAL ENHANCED SERVICES,
Department of Health,03K,30/04/2015,C&M-GMS Cost of Drugs -Dispensing,LOCAL ENHANCED SERVICES,TRENT VIEW MEDICAL PRACTICE,KHU000012195,"-39,891.80",LOCAL ENHANCED SERVICES,
Department of Health,03K,30/04/2015,C&M-GMS Cost of Drugs -Dispensing,LOCAL ENHANCED SERVICES,TRENT VIEW MEDICAL PRACTICE,KHU000012196,"93,278.93",LOCAL ENHANCED SERVICES,
Department of Health,03K,30/04/2015,Clinical&Medical-Independent Sector,NCAS/OATS,ST HUGHS HOSPITAL,LINCN012015,"49,118.71",MAJOR PAIN PROCEDURES ,
Department of Health,03K,30/04/2015,Hcare Srv Rec Fdtn Trust-Non Contract,MENTAL HEALTH CONTRACTS,ROTHERHAM DONCASTER & SOUTH HUMBER MENTAL HEALTH NHS FOUNDATION TRUST,69190,"39,330.00",CARE FEES MARCH 2015,
Department of Health,03K,30/04/2015,Hcare Srv Rec NHS Trust-Contract Baseline,PATIENT TRANSPORT,EAST MIDLANDS AMBULANCE SERVICE NHS TRUST,11305689,"99,559.00",PTS CONTRACT APRIL 2015,
Department of Health,03K,30/04/2015,Hcare Srv Rec NHS Trust-Contract Baseline,AMBULANCE SERVICES,EAST MIDLANDS AMBULANCE SERVICE NHS TRUST,11305701,"399,006.00",A&E SLA APRIL 2015,
Department of Health,03K,30/04/2015,Hcare Srv Rec NHS Trust-Contract Baseline,ACUTE COMMISSIONING,LEEDS TEACHING HOSPITALS NHS TRUST,1410015383,"61,884.00","INVOICE FOR 1/12TH OF 14/15 CONTRACT VALUE, BEFORE 15/16 CONTRACT AGREEMENT ",
Department of Health,03K,30/04/2015,Hcare Srv Rec Fdtn Trust-Contract Cost per Case,ACUTE COMMISSIONING,NORTHERN LINCOLNSHIRE AND GOOLE HOSPITALS NHS FOUNDATION TRUST,2400007963,"42,638.00",RECIPROCAL OVERSEAS VISITOR ACTIVITY M11 & M12,
Department of Health,03K,30/04/2015,Hcare Srv Rec Fdtn Trust-Contract Baseline,ACUTE COMMISSIONING,NORTHERN LINCOLNSHIRE AND GOOLE HOSPITALS NHS FOUNDATION TRUST,2400008323,"76,087.00",JOINT COMMUNITY CASH PLAN HEALTHY LIVES HEALTHY FUTURES ,
Department of Health,03K,30/04/2015,Hcare Srv Rec Fdtn Trust-Contract Baseline,ACUTE COMMISSIONING,NORTHERN LINCOLNSHIRE AND GOOLE HOSPITALS NHS FOUNDATION TRUST,2400008333,"8,583,300.00",2015/16 STANDARD CONTRACT APRIL ,
Department of Health,03K,30/04/2015,Hcare Srv Rec Fdtn Trust-Contract Baseline,Winter Resilience,NORTHERN LINCOLNSHIRE AND GOOLE HOSPITALS NHS FOUNDATION TRUST,2400008346,"126,087.00",2014/15 STANDARD CONTRACT ,
Department of Health,03K,30/04/2015,Hcare Srv Rec Fdtn Trust-Contract Baseline,ACUTE COMMISSIONING,NORTHERN LINCOLNSHIRE AND GOOLE HOSPITALS NHS FOUNDATION TRUST,2500000925,"-76,087.00",2014/15 STANDARD CONTRACT 2ND TRANCHE RESILIENCE FUNDING CREDIT NOTE,
Department of Health,03K,30/04/2015,Charges from CSU,REABLEMENT,NHS YORKSHIRE AND HUMBER CS,7312401382,"31,623.00",CONTRACT VARIATION - BETTER CARE FUND JULY TO SEPTEMBER 2014,
Department of Health,03K,30/04/2015,Charges from CSU,MEDICINES MANAGEMENT - CLINICAL,NHS YORKSHIRE AND HUMBER CS,7312401668,"249,900.00",BASELINE 15/16 MONTH 1 ,
Department of Health,03K,30/04/2015,Hcare Srv Rec Fdtn Trust-Contract Baseline,ACUTE COMMISSIONING,DONCASTER AND BASSETLAW HOSPITALS NHS FOUNDATION TRUST,82133512,"252,193.00","SLA (PBR) INPATIENT ELECTIVE, CQUINS 50% APRIL 2015",
Department of Health,03K,30/04/2015,Hcare Srv Rec Fdtn Trust-Contract Baseline,MENTAL HEALTH CONTRACTS,ROTHERHAM DONCASTER & SOUTH HUMBER MENTAL HEALTH NHS FOUNDATION TRUST,69208,"1,089,439.08",MENTAL HEALTH/COMMUNITY CONTRACT 15/16 APRIL 2015,
Department of Health,03K,30/04/2015,Hcare Srv Rec NHS Trust-Contract Baseline,ACUTE COMMISSIONING,HULL AND EAST YORKSHIRE HOSPITALS NHS TRUST,1210015942,"838,747.00",2015/15 BLOCK CONTRACT INVOICE APRIL 2015,
Department of Health,03K,30/04/2015,Hcare Srv Rec Fdtn - Trust-Contract Baseline,ACUTE COMMISSIONING,SHEFFIELD CHILDRENS NHS FOUNDATION TRUST,2100165407,"38,544.00",1/12TH OF ANNUAL PROPOSED CONTRACT VALUE APRIL 2015,
Department of Health,03K,30/04/2015,C&M-GMS Cost of Drugs -Dispensing,LOCAL ENHANCED SERVICES,CENTRAL SURGERY BARTON HUMBER,KHU000012181,"-37,198.12",LOCAL ENHANCED SERVICES,
Department of Health,03K,30/04/2015,C&M-GMS Cost of Drugs -Dispensing,LOCAL ENHANCED SERVICES,CENTRAL SURGERY BARTON HUMBER,KHU000012182,"75,783.66",LOCAL ENHANCED SERVICES,
Department of Health,03K,30/04/2015,C&M-GMS Cost of Drugs -Dispensing,LOCAL ENHANCED SERVICES,RIVERSIDE SURGERY,KHU000012186,"-52,448.52",LOCAL ENHANCED SERVICES,
Department of Health,03K,30/04/2015,C&M-GMS Cost of Drugs -Dispensing,LOCAL ENHANCED SERVICES,RIVERSIDE SURGERY,KHU000012187,"106,647.62",LOCAL ENHANCED SERVICES,
Department of Health,03K,30/04/2015,C&M-GMS Cost of Drugs -Dispensing,LOCAL ENHANCED SERVICES,KIRTON LINDSEY SURGERY,KHU000012190,"-28,595.71",LOCAL ENHANCED SERVICES,
Department of Health,03K,30/04/2015,C&M-GMS Cost of Drugs -Dispensing,LOCAL ENHANCED SERVICES,KIRTON LINDSEY SURGERY,KHU000012191,"58,150.87",LOCAL ENHANCED SERVICES,
Department of Health,03K,30/04/2015,C&M-GMS Cost of Drugs -Dispensing,LOCAL ENHANCED SERVICES,SOUTH AXHOLME PRACTICE,KHU000012193,"-90,409.46",LOCAL ENHANCED SERVICES,
Department of Health,03K,30/04/2015,C&M-GMS Cost of Drugs -Dispensing,LOCAL ENHANCED SERVICES,SOUTH AXHOLME PRACTICE,KHU000012194,"185,770.65",LOCAL ENHANCED SERVICES,
Department of Health,03K,30/04/2015,Clinical&Medical-Independent Sector,ACUTE COMMISSIONING,SPIRE HEALTHCARE LTD,03K010415PFHUL,"55,057.00",PATIENT ACTIVITY APRIL 2015,
Department of Health,03K,30/04/2015,Clinical&Medical-Independent Sector,COMMISSIONING RESERVE,GEORGINA CRAIG ASSOCIATES,289,"30,000.00",EXPERIENCE LED COMMISSIONING PROGRAMME LICENCE FEE,
Department of Health,03K,30/04/2015,Cont Care-Learning Disab(<65),CHC ADULT JOINT FUNDED,NORTH LINCOLNSHIRE COUNCIL,A0031155,"35,100.00",PART FUNDING CHC RECHARGE 01/10/2014 - 31/03/2015,
Department of Health,03K,30/04/2015,Cont Care-Learning Disab(<65),CHC ADULT JOINT FUNDED,NORTH LINCOLNSHIRE COUNCIL,A0031156,"35,872.20",PART FUNDING CHC REXHARGE 01/04/2014 - 31/03/2015,
Department of Health,03K,30/04/2015,Services From Local Authorities,INTERMEDIATE CARE,NORTH LINCOLNSHIRE COUNCIL,A0031182,"104,110.00",INTERMEDIATE CARE SERVICE CONTRIBUTION Q3 JAN - MARCH 2015,
Department of Health,03K,30/04/2015,Cont Care- Prior Year Payments,CHC ADULT JOINT FUNDED,NORTH LINCOLNSHIRE COUNCIL,A0031193,"35,292.86",CHC RECHARGE 01/04/2014 - 30/09/2014,
Department of Health,03K,30/04/2015,Cont Care - Children,CHC CHILDREN,NORTH LINCOLNSHIRE COUNCIL,C0009830,"28,213.50",CARE FEES 01/11/2014 - 31/03/2015,
Department of Health,03K,30/04/2015,C&M-GMS Cost of Drugs -Dispensing,LOCAL ENHANCED SERVICES,BARNETBY MEDICAL CENTRE,KHU000012200,"-34,454.59",LOCAL ENHANCED SERVICES,
Department of Health,03K,30/04/2015,C&M-GMS Cost of Drugs -Dispensing,LOCAL ENHANCED SERVICES,BARNETBY MEDICAL CENTRE,KHU000012201,"79,729.01",LOCAL ENHANCED SERVICES,
